bitfinex/quotes_ETHUSD_20210701
["timestamp","ask_amount","ask_price","bid_price","bid_amount"]
[1625167381319,11.04011142,2092.7,2091.8,0.15]
[1625167381619,10.94011142,2092.7,2091.7,2.44908015]
[1625167381718,15.87641142,2092.7,2091.4,9.68945333]
[1625167381818,16.71311142,2092.7,2091.4,9.5528]
[1625167382119,16.71311142,2092.7,2091.4,12.00188015]
[1625167382421,0.2,2092.6,2091.4,2.59908015]
[1625167382522,0.2,2092.6,2091.4,0.15]
[1625167382620,0.2,2092.6,2091.3,0.24929278]
[1625167382770,2.55922329,2092.6,2091.1,0.00659481]
[1625167382924,2.26522329,2092.6,2091.1,0.00659481]
[1625167383169,0.04,2092.5,2091.1,0.00659481]
[1625167383624,7.16571,2092.4,2091.2,7.16574]
[1625167383709,0.00722329,2092.6,2091.2,7.16574]
[1625167383861,0.00722329,2092.6,2091.1,0.00659481]
[1625167383966,2.14922329,2092.6,2091.1,0.00659481]
[1625167384060,0.06,2092.5,2091.1,0.00659481]
[1625167384763,7.16652,2092.2,2091.1,0.00659481]
[1625167384864,10.37282,2092.2,2091.1,0.00659481]
[1625167384967,15.38282,2092.2,2091.1,0.00659481]
[1625167385118,0.2,2092.1,2091.1,0.00659481]
[1625167385314,2.228,2092.1,2091.1,0.00659481]
[1625167385615,0.15,2092.1,2091.1,0.00659481]
[1625167385713,0.26302736,2092.1,2091.1,0.00659481]
[1625167385819,4.51742736,2092.1,2091.1,0.00659481]
[1625167385914,0.08,2092.0,2091.1,0.00659481]
[1625167386016,9.2644,2092.1,2091.1,0.00659481]
[1625167386122,7.16746,2092.0,2091.1,0.00659481]
[1625167386218,5.01,2092.1,2091.1,0.00659481]
[1625167386466,11.189,2092.2,2091.1,0.00659481]
[1625167387417,18.35555,2092.2,2091.1,7.17299481]
[1625167388083,18.30555,2092.2,2091.1,7.17299481]
[1625167388482,20.33355,2092.2,2091.1,7.17299481]
[1625167388734,18.30555,2092.2,2091.1,7.17299481]
[1625167388936,18.30555,2092.2,2091.1,0.00659481]
[1625167389040,20.8573,2092.1,2091.1,0.00659481]
[1625167389288,25.9213,2092.1,2091.1,0.00659481]
[1625167389435,10.9213,2092.1,2091.1,0.00659481]
[1625167389589,0.06,2092.0,2091.1,0.00659481]
[1625167389937,7.17758,2092.0,2091.1,0.00659481]
[1625167390038,5.01,2092.1,2091.1,0.00659481]
[1625167390483,12.1654,2092.2,2091.1,0.00659481]
[1625167390586,7.1554,2092.2,2091.1,0.00659481]
[1625167390684,12.1654,2092.2,2091.1,0.00659481]
[1625167391089,18.30612,2092.2,2091.1,7.17332481]
[1625167391287,0.11302733,2092.1,2091.1,7.17332481]
[1625167391542,0.11302733,2092.1,2091.1,7.32332481]
[1625167392848,4.59852733,2092.1,2091.1,7.32332481]
[1625167393003,15.08,2092.0,2091.0,0.2]
[1625167393101,17.4126,2092.0,2090.8,1.0]
[1625167393201,17.4126,2092.0,2090.1,6.89210016]
[1625167393202,54.98519948,2091.9,2090.1,6.89210016]
[1625167393351,3.46,2091.7,2090.1,0.02210016]
[1625167393452,46.21857,2091.6,2090.1,0.02210016]
[1625167393553,76.68607,2091.6,2090.1,0.02210016]
[1625167393702,6.76985,2091.1,2090.1,0.02210016]
[1625167393802,15.00700603,2091.0,2090.1,0.02210016]
[1625167393949,7.17357,2090.6,2090.1,0.02210016]
[1625167394152,3.68698,2090.5,2090.1,0.02210016]
[1625167394253,3.68698,2090.5,2090.0,0.29537163]
[1625167394406,3.58698,2090.5,2090.0,0.21747179]
[1625167394599,8.59698,2090.5,2090.0,0.21747179]
[1625167394892,2.04,2090.4,2090.0,1.21747179]
[1625167395119,7.17297,2090.3,2090.0,1.21747179]
[1625167395214,7.21297,2090.3,2090.0,1.21747179]
[1625167395314,7.21297,2090.3,2088.9,2.59555002]
[1625167395418,12.17297,2090.3,2088.9,2.59555002]
[1625167395523,15.2,2090.2,2088.4,2.27365183]
[1625167395621,0.55,2090.1,2088.4,0.039]
[1625167395721,7.65079975,2090.1,2088.4,0.039]
[1625167395821,7.65079975,2090.1,2088.6,0.40523772]
[1625167395822,49.46672386,2090.0,2088.6,0.40523772]
[1625167395918,3.60398519,2089.9,2088.6,0.40523772]
[1625167396074,9.57041,2089.3,2088.6,0.40523772]
[1625167396181,20.0,2089.2,2088.6,7.72e-06]
[1625167396273,81.36857,2089.2,2088.4,7.72e-06]
[1625167396374,54.07218394,2089.1,2088.0,1.342e-05]
[1625167396480,3.46,2088.5,2087.0,4.2000245]
[1625167396578,3.46,2088.5,2087.0,3.73193648]
[1625167396579,61.21857,2088.4,2087.0,3.73193648]
[1625167396672,64.81023,2088.4,2087.0,3.73193648]
[1625167396773,96.81450304,2088.3,2087.0,3.73193648]
[1625167396870,3.46,2088.0,2087.0,3.73193648]
[1625167397122,3.46,2087.7,2087.0,3.43193648]
[1625167397269,3.46,2087.1,2086.5,6.87994069]
[1625167397368,3.46,2087.1,2085.3,5.02845623]
[1625167397468,15.0,2087.0,2085.3,5.02845623]
[1625167397627,15.0,2087.0,2084.8,0.34246343]
[1625167397628,97.29742714,2086.9,2084.8,0.34246343]
[1625167397721,3.46,2085.4,2084.8,0.34246343]
[1625167397878,49.46672386,2085.3,2084.8,0.24246343]
[1625167397969,69.06740386,2085.3,2084.8,0.24246343]
[1625167398071,2.2201,2085.2,2084.8,0.24246343]
[1625167398169,47.28263004,2085.2,2084.8,0.24246343]
[1625167398278,8.0891667,2085.1,2084.5,0.95118969]
[1625167398381,7.19469,2084.8,2084.2,0.98376265]
[1625167398520,15.0,2084.7,2083.8,3.97011536]
[1625167398676,3.46,2084.6,2083.8,3.97011536]
[1625167398772,3.46,2084.6,2083.8,0.01011536]
[1625167398773,3.46,2084.3,2083.8,0.01011536]
[1625167398925,52.68023304,2084.2,2082.6,0.96563309]
[1625167399026,3.46,2083.9,2083.3,47.22394834]
[1625167399120,93.92394162,2083.8,2083.3,47.22394834]
[1625167399226,3.46,2083.4,2083.3,41.82394834]
[1625167399397,58.11853304,2083.4,2083.3,32.56494834]
[1625167399531,125.90185389,2083.4,2082.6,0.91563309]
[1625167399633,179.39578693,2083.4,2082.3,6.31e-06]
[1625167399731,1.7864,2083.3,2081.4,0.9560334]
[1625167399831,3.46,2082.7,2081.4,0.9560334]
[1625167399933,50.59593304,2083.2,2081.1,4.67185889]
[1625167400036,4.78632156,2083.3,2081.1,4.67185889]
[1625167400037,3.46,2081.8,2081.1,4.67185889]
[1625167400136,8.4613,2081.8,2081.1,4.60883889]
[1625167400234,0.15,2081.7,2081.1,4.60883889]
[1625167400385,0.15,2081.7,2080.2,0.02214279]
[1625167400682,2.232,2081.7,2080.2,0.02214279]
[1625167400938,2.388,2081.7,2080.2,0.02214279]
[1625167401033,2.388,2081.7,2081.0,0.32968913]
[1625167401189,13.0013,2081.8,2081.0,0.32968913]
[1625167401191,5.0013,2081.8,2081.0,0.32968913]
[1625167401384,5.0013,2081.8,2081.1,2.49968113]
[1625167401649,5.0013,2081.8,2081.1,2.44968113]
[1625167402192,1.2108,2082.0,2081.2,2.2677]
[1625167402296,3.8739,2082.7,2081.2,2.2677]
[1625167402449,0.52868649,2083.0,2081.2,3.9872]
[1625167402547,1.9356,2083.5,2083.1,2.22129018]
[1625167402698,0.16678818,2083.4,2083.1,2.22129018]
[1625167402895,0.16,2083.4,2083.1,2.37129018]
[1625167402995,0.16,2083.4,2083.1,0.15]
[1625167403448,0.16,2083.4,2082.7,0.15]
[1625167403548,0.16,2083.4,2081.5,2.26576442]
[1625167403700,0.16,2083.4,2081.8,5.1455]
[1625167403896,0.0001,2083.4,2082.4,2.24428737]
[1625167404186,0.0001,2083.4,2082.5,3.46]
[1625167404327,0.0001,2083.4,2082.5,3.41]
[1625167404426,0.0001,2083.4,2082.6,0.15]
[1625167404526,4.9367,2084.3,2082.6,0.15]
[1625167404630,2.25,2084.2,2082.6,0.15]
[1625167404879,2.058,2084.2,2082.6,0.15]
[1625167405131,8.237,2084.2,2082.6,2.3918]
[1625167405350,13.58153948,2085.9,2082.6,5.8518]
[1625167405351,0.00752184,2084.6,2082.6,5.8518]
[1625167405446,0.15315807,2085.4,2082.7,2.22030452]
[1625167405550,1.0648,2085.7,2083.2,3.46]
[1625167405551,1.08339099,2085.7,2083.2,3.46]
[1625167405647,1.08339099,2085.7,2082.8,0.32623187]
[1625167405752,3.5781,2085.4,2083.3,0.134201]
[1625167405896,0.03040956,2085.3,2083.4,0.15]
[1625167406005,0.03040956,2085.3,2080.6,0.91830905]
[1625167406195,0.03040956,2085.3,2083.1,0.15]
[1625167406196,0.06150059,2085.3,2083.1,0.15]
[1625167406334,0.42772648,2084.9,2081.7,2.22030452]
[1625167406428,4.06712648,2084.9,2081.7,2.22030452]
[1625167406585,0.42772648,2084.8,2081.8,0.15]
[1625167406683,0.42772648,2084.3,2081.8,0.15]
[1625167406785,0.30319569,2083.9,2081.8,0.15]
[1625167406938,4.79519103,2083.9,2081.8,0.15]
[1625167407038,0.2377195,2083.8,2081.8,0.15]
[1625167407532,20.0,2083.5,2081.8,0.15]
[1625167407640,20.02183983,2083.5,2081.3,0.15]
[1625167407734,20.0,2083.2,2080.7,2.03527914]
[1625167407888,3.0651506,2083.1,2080.7,2.18527914]
[1625167407986,0.02469839,2083.0,2080.7,0.15]
[1625167408084,46.21857,2082.9,2080.7,0.15]
[1625167408181,46.21857,2082.9,2080.3,0.15]
[1625167408182,4.5915,2082.9,2080.3,0.15]
[1625167408284,12.84448552,2082.9,2080.3,0.15]
[1625167408435,32.84448552,2082.9,2080.3,0.15]
[1625167408543,0.45550742,2082.8,2080.3,0.15]
[1625167408686,0.34621612,2082.7,2080.3,0.15]
[1625167408937,0.34621612,2082.7,2080.4,0.00939677]
[1625167409087,0.34621612,2082.7,2080.2,0.02214279]
[1625167409239,0.34621612,2082.7,2080.5,3.46]
[1625167409385,0.34621612,2082.7,2080.4,2.03527914]
[1625167409386,0.34621612,2082.7,2080.7,3.46]
[1625167409538,8.21066756,2084.0,2080.8,30.0]
[1625167409637,31.62378112,2084.9,2080.8,30.0]
[1625167409638,21.47302226,2084.3,2080.8,34.66188936]
[1625167409740,0.00731041,2084.1,2080.9,0.16]
[1625167409840,31.4162,2084.9,2081.6,3.46]
[1625167409944,2.226,2084.7,2082.2,3.46]
[1625167410093,2.226,2084.7,2082.3,0.15]
[1625167410187,10.8427,2084.9,2082.3,0.60853304]
[1625167410288,57.9565811,2084.8,2082.3,0.63065974]
[1625167410439,57.9565811,2084.8,2082.3,0.60853304]
[1625167410869,35.9841811,2084.8,2083.8,3.46]
[1625167410970,20.1956811,2084.8,2083.8,3.086]
[1625167411068,0.82958,2085.8,2084.6,3.46]
[1625167411167,0.82958,2085.8,2084.6,6.5613]
[1625167411323,0.82958,2085.8,2084.7,0.49281501]
[1625167411423,8.57228564,2086.6,2084.7,0.52117765]
[1625167411517,14.85114671,2087.5,2084.7,0.52117765]
[1625167411518,2.286,2087.1,2084.7,0.52117765]
[1625167411771,3.73491815,2087.5,2084.8,4.29703]
[1625167411865,3.73491815,2087.5,2084.9,0.65967669]
[1625167411967,2.31,2087.7,2084.9,0.65967669]
[1625167412071,20.0,2087.0,2084.9,0.69368137]
[1625167412167,20.0,2087.0,2084.9,0.03400468]
[1625167412168,27.18874,2087.0,2084.9,0.03400468]
[1625167412277,46.36857,2086.9,2084.8,0.75103468]
[1625167412370,0.15,2086.9,2084.8,0.75103468]
[1625167412471,3.46,2086.5,2084.8,0.67103468]
[1625167412572,0.0282461,2086.5,2084.8,0.67103468]
[1625167412672,3.46,2086.2,2084.8,0.67103468]
[1625167412771,3.46,2085.7,2084.8,0.67103468]
[1625167412966,1.7852,2085.9,2082.2,0.15]
[1625167412967,3.46,2085.2,2082.2,0.33194547]
[1625167413065,0.55442581,2085.1,2082.2,0.33194547]
[1625167413176,3.46,2084.6,2082.2,0.33194547]
[1625167413315,0.15,2084.5,2081.3,0.45434381]
[1625167413413,3.46,2083.8,2081.3,0.45434381]
[1625167413512,7.1668,2083.8,2081.3,0.45434381]
[1625167413616,7.1668,2083.8,2080.7,2.20485258]
[1625167413617,0.15,2083.7,2080.7,2.20485258]
[1625167413770,0.15,2083.7,2080.8,0.44366427]
[1625167413868,0.02469875,2083.8,2080.8,0.59366427]
[1625167413967,0.02469875,2083.8,2081.3,2.20485258]
[1625167414118,0.15,2084.4,2081.4,0.58114428]
[1625167414223,2.07,2084.8,2081.4,0.73114428]
[1625167414316,2.09281822,2084.8,2081.4,0.73114428]
[1625167414420,2.17681822,2084.8,2081.4,0.73114428]
[1625167414524,2.17681822,2084.8,2081.6,3.46]
[1625167414617,2.17681822,2084.8,2081.7,0.41488287]
[1625167414715,0.02281822,2084.8,2081.7,0.56488287]
[1625167414820,0.02551343,2085.1,2081.7,0.56488287]
[1625167414918,0.02680919,2085.3,2081.9,3.46]
[1625167415019,0.02565699,2085.4,2082.0,0.55596166]
[1625167415181,0.02565699,2085.4,2082.0,7.01377043]
[1625167415290,0.02565699,2085.4,2082.4,6.5433]
[1625167415383,0.02565699,2085.4,2082.5,0.45092144]
[1625167415489,2.42675122,2085.6,2082.5,0.60092144]
[1625167415586,2.42675122,2085.6,2082.7,3.46]
[1625167415687,2.42675122,2085.6,2082.6,0.2]
[1625167415836,6.79017214,2085.6,2082.8,0.15]
[1625167415946,21.0658,2085.5,2082.5,2.20485258]
[1625167416038,20.0,2084.7,2082.5,2.20485258]
[1625167416142,20.0,2084.7,2081.7,10.7006]
[1625167416143,24.0934,2084.7,2082.4,0.24843668]
[1625167416236,4.0934,2084.7,2082.4,0.24843668]
[1625167416435,4.0934,2084.7,2081.8,0.24201022]
[1625167416540,2.358,2084.6,2081.8,0.24201022]
[1625167416688,2.358,2084.6,2081.2,0.55931295]
[1625167416785,4.07429592,2084.7,2081.2,0.55931295]
[1625167417037,2.4,2084.6,2081.9,1.24230584]
[1625167417240,0.10005357,2084.5,2081.9,1.24230584]
[1625167417338,0.12731907,2084.5,2081.5,0.14952341]
[1625167417586,0.0272655,2084.5,2081.9,1.24219404]
[1625167417691,0.0272655,2084.5,2082.0,0.24945521]
[1625167418087,0.01940174,2084.6,2082.0,3.7421]
[1625167418236,0.03222208,2084.7,2082.1,0.36927176]
[1625167418743,0.12885879,2084.6,2082.0,2.20485258]
[1625167418890,0.12885879,2084.6,2081.9,2.14401071]
[1625167418987,0.12885879,2084.6,2081.9,0.99381071]
[1625167419535,4.27833879,2084.6,2081.9,0.99381071]
[1625167419689,4.31308656,2084.6,2081.9,0.99381071]
[1625167419938,2.844,2084.5,2081.9,0.99381071]
[1625167420035,0.28275273,2084.4,2081.9,0.99381071]
[1625167420184,0.3152576,2084.4,2081.8,0.24845268]
[1625167420374,0.3152576,2084.4,2081.8,0.24245268]
[1625167420473,0.3152576,2084.4,2081.9,0.99397013]
[1625167421957,0.3152576,2084.4,2081.2,8.51495668]
[1625167422263,0.3152576,2084.4,2081.3,0.07365663]
[1625167422368,0.3152576,2084.4,2081.2,8.51495668]
[1625167422464,0.3152576,2084.4,2081.3,3.4499614]
[1625167422740,0.03222419,2084.3,2081.5,0.44093015]
[1625167422920,0.03222419,2084.3,2081.6,0.12]
[1625167423020,0.03222419,2084.3,2081.7,0.47060033]
[1625167423265,0.03222419,2084.3,2081.7,1.40539915]
[1625167423417,0.03222419,2084.3,2081.7,2.21047642]
[1625167423517,0.03222419,2084.3,2081.8,2.20485258]
[1625167423617,0.03222419,2084.3,2081.9,0.47060033]
[1625167424120,0.03222419,2084.3,2082.0,2.20485258]
[1625167424217,0.03222419,2084.3,2082.1,0.47060033]
[1625167424371,0.03222419,2084.3,2082.1,0.61060033]
[1625167424469,0.03222419,2084.3,2082.1,7.80208033]
[1625167424568,0.03222419,2084.3,2082.1,15.80208033]
[1625167424718,0.03222419,2084.3,2082.2,2.20485258]
[1625167424919,8.321,2085.6,2082.3,5.10550033]
[1625167425021,6.179,2085.6,2082.4,0.93479882]
[1625167425170,6.179,2085.6,2082.5,0.47060033]
[1625167425368,6.179,2085.6,2082.6,0.93479882]
[1625167425468,6.179,2085.6,2082.7,0.47060033]
[1625167425776,12.2565,2086.2,2082.7,0.47060033]
[1625167426026,2.082,2086.1,2082.8,2.20485258]
[1625167426119,2.082,2086.1,2082.9,0.47060033]
[1625167426275,2.274,2086.1,2082.9,0.47060033]
[1625167426371,2.274,2086.1,2082.9,3.64480033]
[1625167426577,2.466,2086.1,2082.9,3.64480033]
[1625167426925,2.526,2086.1,2082.9,3.64480033]
[1625167427128,2.118,2086.1,2082.9,3.64480033]
[1625167427330,2.118,2086.1,2083.0,2.20485258]
[1625167427429,19.7508,2086.2,2083.1,0.47060033]
[1625167427628,21.7968,2086.2,2083.1,0.47060033]
[1625167427882,2.1,2086.1,2083.5,9.58587]
[1625167427979,2.1,2086.1,2083.6,0.1576483]
[1625167428178,2.19,2086.1,2083.6,0.1576483]
[1625167428328,2.19,2086.1,2083.7,0.06]
[1625167428430,9.5883,2086.2,2083.7,0.06]
[1625167428528,9.5883,2086.2,2083.8,0.25592803]
[1625167428983,9.5883,2086.2,2083.5,18.88007]
[1625167428984,7.18947,2086.1,2084.1,0.05603892]
[1625167429284,0.03438133,2086.0,2083.5,9.58587]
[1625167429432,0.03438133,2086.0,2083.1,9.58745]
[1625167429434,0.01764445,2086.0,2083.1,9.58745]
[1625167429533,2.54364445,2086.0,2083.2,0.04341779]
[1625167429641,6.27158264,2086.0,2083.1,9.58745]
[1625167429733,6.40958264,2086.0,2083.1,9.58745]
[1625167429830,6.40958264,2086.0,2082.7,20.3821]
[1625167429933,46.21857,2085.9,2082.7,20.3821]
[1625167430090,0.1196899,2084.7,2082.7,20.38885809]
[1625167430190,3.6335899,2084.7,2082.7,10.06605809]
[1625167430380,3.6335899,2084.7,2082.7,0.00675809]
[1625167430781,2.526,2084.6,2082.7,0.00675809]
[1625167430998,0.19759346,2084.5,2082.6,30.1644566]
[1625167431010,0.205659,2084.5,2082.6,30.1644566]
[1625167431209,0.00806554,2084.5,2082.6,34.3433566]
[1625167431610,0.00806554,2084.5,2082.7,3.5948814]
[1625167431711,0.00806554,2084.5,2082.8,0.00842592]
[1625167431812,0.00806554,2084.5,2082.9,0.16481907]
[1625167432211,19.94047,2085.8,2083.6,7.18902]
[1625167432362,2.328,2085.7,2083.7,0.22889473]
[1625167432459,7.0972,2085.7,2083.7,0.22889473]
[1625167432560,7.10650531,2085.7,2083.3,0.08029706]
[1625167432657,7.40650531,2085.7,2083.3,0.08029706]
[1625167432908,2.466,2085.6,2083.3,0.08029706]
[1625167433220,2.454,2085.6,2083.3,0.08029706]
[1625167433323,9.58909,2085.4,2083.4,7.19116]
[1625167433424,17.58909,2085.4,2083.4,7.19116]
[1625167433523,0.08093819,2085.3,2083.4,7.19116]
[1625167433929,11.85889,2085.4,2083.4,7.19116]
[1625167434028,2.2698,2085.4,2083.5,0.07057168]
[1625167434130,0.00638322,2085.6,2083.6,30.0]
[1625167434275,0.48328368,2086.2,2083.7,30.27892055]
[1625167434426,0.48328368,2086.2,2084.5,4.89684917]
[1625167434525,0.48328368,2086.2,2084.5,4.92045761]
[1625167434676,0.43328368,2086.2,2084.5,4.92045761]
[1625167434828,0.43328368,2086.2,2084.5,4.87045761]
[1625167435125,1.1892,2086.3,2084.5,4.87045761]
[1625167435519,1.1892,2086.3,2084.6,7.18738]
[1625167435574,1.1892,2086.3,2084.5,4.87045761]
[1625167435725,1.1892,2086.3,2084.7,0.17568637]
[1625167435825,1.1892,2086.3,2084.6,0.14896834]
[1625167436274,10.5168,2086.5,2084.6,0.14896834]
[1625167436629,10.5168,2086.5,2085.2,7.18549]
[1625167436727,10.5168,2086.5,2085.3,0.15324919]
[1625167436928,0.52690046,2086.9,2085.3,0.15324919]
[1625167437027,0.47690046,2086.9,2085.3,0.15324919]
[1625167437129,2.466,2086.9,2084.4,19.86436]
[1625167437230,2.466,2086.9,2084.4,9.58226]
[1625167437327,0.21206832,2086.8,2084.4,9.58226]
[1625167437630,7.1874,2086.6,2084.4,9.58226]
[1625167437772,0.1767112,2086.5,2084.4,9.58226]
[1625167437919,0.16249695,2086.5,2084.4,9.58226]
[1625167438020,0.15487154,2086.9,2084.4,9.58226]
[1625167438271,0.17900059,2086.9,2084.4,9.58226]
[1625167438571,0.19654792,2086.9,2084.4,9.58226]
[1625167438670,7.38286792,2086.9,2084.4,9.58226]
[1625167438773,7.36532059,2086.9,2084.4,9.58226]
[1625167439021,9.50732059,2086.9,2084.4,9.58226]
[1625167439278,2.292,2086.8,2084.0,9.58515]
[1625167439374,0.55424224,2086.7,2083.6,10.723]
[1625167439479,23.59556,2086.4,2083.6,10.723]
[1625167439673,0.59329986,2086.3,2083.6,10.723]
[1625167440040,0.59329986,2086.3,2083.6,9.58693]
[1625167440041,0.20796426,2085.2,2083.6,9.58693]
[1625167440151,0.22594492,2085.2,2083.6,9.58693]
[1625167440240,9.58752,2085.7,2083.6,9.58693]
[1625167440241,0.26389146,2085.6,2083.6,9.58693]
[1625167440339,9.6095381,2085.7,2083.6,9.58693]
[1625167440340,0.0220181,2085.7,2083.6,9.58693]
[1625167440491,0.24787039,2085.6,2083.6,9.58693]
[1625167440787,0.26588339,2085.6,2083.6,9.58693]
[1625167440999,4.82818339,2085.6,2083.6,9.58693]
[1625167441096,6.14897039,2085.6,2083.6,9.58693]
[1625167441198,0.01810807,2085.5,2083.6,9.58693]
[1625167441340,0.20900833,2085.4,2083.6,9.58693]
[1625167441658,0.20900833,2085.4,2083.6,13.18106]
[1625167441795,1.1163,2085.6,2083.7,0.08]
[1625167441889,1.1163,2085.6,2083.7,4.6715]
[1625167442283,1.1163,2085.6,2083.7,4.5915]
[1625167442344,1.1163,2085.6,2084.5,7.18768]
[1625167442444,1.1163,2085.6,2084.4,9.58358]
[1625167442544,1.1163,2085.6,2084.0,9.58358]
[1625167442545,2.5131,2085.6,2084.0,9.58358]
[1625167442692,7.5383,2085.6,2084.0,9.58358]
[1625167443397,6.422,2085.6,2084.0,9.58358]
[1625167443492,6.422,2085.6,2084.6,51.1249936]
[1625167443595,5.0252,2085.6,2084.7,7.1878]
[1625167443691,3.9764,2085.6,2084.7,7.1878]
[1625167443792,7.18836,2086.0,2084.7,7.1878]
[1625167444147,10.3716,2086.3,2084.7,7.1878]
[1625167444520,11.9844,2086.6,2084.7,7.1878]
[1625167444682,11.9844,2086.6,2084.8,0.11683512]
[1625167445081,11.9844,2086.6,2084.9,7.18741]
[1625167445277,3.03758,2086.8,2085.0,0.02021638]
[1625167445378,2.85158,2086.8,2085.0,0.02021638]
[1625167445477,2.85158,2086.8,2084.7,0.08964943]
[1625167445580,0.82958,2086.8,2084.7,0.08964943]
[1625167445729,0.82958,2086.8,2084.8,0.14]
[1625167445884,10.8961,2087.0,2084.9,0.06829118]
[1625167446429,4.7171,2087.0,2084.9,0.06829118]
[1625167446528,12.50730046,2087.1,2084.9,0.06829118]
[1625167446632,12.50730046,2087.1,2084.9,0.07437238]
[1625167446880,7.18524,2087.0,2085.6,7.185]
[1625167447082,7.18524,2087.0,2085.4,9.57987]
[1625167447083,11.33124,2087.0,2085.4,9.57987]
[1625167447280,11.33124,2087.0,2085.4,5.32470136]
[1625167447383,11.33124,2087.0,2085.0,9.58165]
[1625167447780,11.33124,2087.0,2085.1,0.08]
[1625167447982,11.33124,2087.0,2085.0,9.58165]
[1625167448231,2.358,2086.9,2085.0,9.58165]
[1625167448332,2.55229748,2086.9,2084.6,51.1249936]
[1625167448532,2.57029748,2086.9,2084.6,51.1249936]
[1625167448685,3.59412,2086.8,2084.6,51.1249936]
[1625167448836,0.31891071,2086.7,2084.6,51.1249936]
[1625167449199,11.23743143,2085.8,2083.4,11.98129]
[1625167449298,5.70760143,2085.8,2083.4,11.98129]
[1625167449393,0.40615418,2085.7,2083.4,11.98129]
[1625167449494,0.40615418,2085.7,2083.0,10.3947]
[1625167449598,2.50615418,2085.7,2083.0,10.3947]
[1625167449796,3.59654,2085.5,2082.9,0.9941048]
[1625167449895,0.51692669,2085.4,2082.9,0.9941048]
[1625167449999,3.5965606,2085.2,2082.5,3.59615]
[1625167450147,3.5965606,2085.2,2082.2,4.7945]
[1625167450148,7.19428,2084.0,2082.6,37.3588166]
[1625167450257,7.21527257,2084.0,2082.6,37.3588166]
[1625167450542,0.20116111,2083.9,2082.6,37.3588166]
[1625167450717,0.20116111,2083.9,2082.6,30.1644566]
[1625167451223,3.59661048,2084.0,2082.6,30.1644566]
[1625167451488,9.77561048,2084.0,2082.6,30.1644566]
[1625167451736,7.19643,2083.4,2082.6,30.1644566]
[1625167451840,3.6945,2083.5,2082.6,30.1644566]
[1625167451936,7.4539,2083.5,2082.6,30.1644566]
[1625167452998,9.77291434,2084.0,2082.6,30.1644566]
[1625167453112,11.99352,2084.6,2082.6,30.1644566]
[1625167453202,11.99352,2084.6,2082.6,41.5401566]
[1625167453293,10.5421,2084.9,2082.7,0.07712827]
[1625167453713,2.028,2085.4,2082.8,3.59561]
[1625167453850,10.2498,2085.7,2084.6,0.01]
[1625167453851,7.19183,2085.0,2084.6,0.01]
[1625167454001,4.4,2084.7,2083.6,7.05172]
[1625167454102,4.4,2084.7,2082.7,0.0060812]
[1625167454205,0.17478348,2084.6,2082.7,0.0060812]
[1625167454302,4.41957841,2084.7,2082.7,0.0060812]
[1625167454410,0.17594589,2084.6,2082.6,30.1644566]
[1625167454655,20.0,2084.5,2082.6,30.1644566]
[1625167454758,20.25386656,2084.4,2082.6,30.1644566]
[1625167454850,0.25386656,2084.4,2082.6,30.1644566]
[1625167454950,8.18741625,2084.4,2082.6,30.1644566]
[1625167455050,7.19497,2084.1,2082.6,37.3600666]
[1625167455993,0.01890758,2084.7,2082.6,37.3600666]
[1625167456084,2.052,2084.8,2082.6,37.3600666]
[1625167456085,2.052,2084.8,2082.7,0.0302722]
[1625167456191,22.85001,2085.2,2082.7,0.02068917]
[1625167456588,30.85001,2085.2,2082.7,0.02068917]
[1625167456687,33.01071,2085.2,2082.6,30.1644566]
[1625167456783,3.5967,2085.1,2082.6,30.1144566]
[1625167456879,3.80152328,2085.1,2082.6,30.1144566]
[1625167457032,5.82352328,2085.1,2082.6,30.1144566]
[1625167457233,7.19386,2084.3,2082.9,9.58938]
[1625167457330,3.946,2084.3,2082.9,9.58938]
[1625167457631,3.846,2084.3,2082.9,9.58938]
[1625167458437,0.9458,2084.5,2082.9,9.58938]
[1625167458538,6.179,2084.7,2082.9,13.75908]
[1625167458837,6.179,2084.7,2082.9,4.1697]
[1625167459089,6.179,2084.7,2083.2,51.53157844]
[1625167459194,10.8598,2085.2,2083.2,51.53157844]
[1625167459340,24.4903349,2085.2,2083.2,51.53157844]
[1625167459439,7.19325,2084.4,2083.2,51.53157844]
[1625167459739,7.14325,2084.4,2083.2,51.53157844]
[1625167459839,12.8747,2084.8,2083.2,51.53157844]
[1625167460788,12.8747,2084.8,2083.2,58.72436844]
[1625167460941,20.90060754,2084.8,2082.8,9.5915]
[1625167461040,0.33804454,2084.7,2082.6,30.1144566]
[1625167461240,2.48004454,2084.7,2082.6,30.1144566]
[1625167461436,2.57604454,2084.7,2082.6,30.1144566]
[1625167461687,2.55204454,2084.7,2082.6,29.9644566]
[1625167461787,2.55204454,2084.7,2082.6,29.8144566]
[1625167462041,0.17398184,2084.0,2082.6,37.0095966]
[1625167462140,0.01665421,2084.0,2082.6,37.0095966]
[1625167462241,2.5986,2084.3,2082.6,37.0095966]
[1625167462242,1.2204,2084.3,2082.6,37.0095966]
[1625167462394,0.19613308,2084.8,2082.7,0.12]
[1625167462491,11.99159,2085.0,2082.7,0.12]
[1625167462631,2.01,2085.4,2083.1,3.59537]
[1625167462729,2.01,2085.4,2083.3,3.59471]
[1625167462887,3.73585608,2085.7,2083.8,3.5939535]
[1625167462978,0.00727482,2085.7,2083.8,9.9610535]
[1625167463082,0.00727482,2085.7,2084.7,7.18744]
[1625167463232,11.98525,2086.1,2084.7,10.98134]
[1625167463331,10.763,2086.4,2084.7,10.98134]
[1625167463429,11.30268,2086.7,2084.8,0.00771282]
[1625167463530,11.30268,2086.7,2084.8,0.0726465]
[1625167463627,10.4731,2086.7,2084.8,0.0726465]
[1625167464081,7.13628,2086.4,2085.3,7.18589]
[1625167464333,7.08628,2086.4,2085.3,7.18589]
[1625167464580,21.98924,2086.8,2085.3,12.14589]
[1625167464679,11.98104,2086.8,2085.3,7.13589]
[1625167464779,10.4731,2087.0,2085.4,0.12]
[1625167465238,10.4731,2087.0,2085.0,14.60196946]
[1625167465339,7.18494,2086.8,2085.6,7.18483]